bitfinex-derivatives/quotes_BNBF0:USTF0_20250904
["timestamp","ask_amount","ask_price","bid_price","bid_amount"]
[1757012615227,0.20658888,842.39,841.38,0.80029083]
[1757012615526,0.20658888,842.39,841.39,0.80029083]
[1757012616531,0.20658888,842.39,841.41,0.80029083]
[1757012617030,0.20658888,842.39,841.42,0.80029083]
[1757012617228,0.20658888,842.39,841.09,1.0629753]
[1757012617229,0.20658888,842.39,841.41,0.80029083]
[1757012617533,0.20658888,842.39,841.42,0.80029083]
[1757012618029,0.20658888,842.39,841.1,1.0629753]
[1757012618030,0.20658888,842.39,841.45,0.80029083]
[1757012618229,0.20658888,842.39,841.14,1.0629753]
[1757012618230,0.20658888,842.39,841.44,0.80029083]
[1757012619235,0.20658888,842.39,841.43,0.80029083]
[1757012619534,0.20658888,842.39,841.44,0.80029083]
[1757012620035,0.20658888,842.39,841.46,0.80029083]
[1757012620436,0.20658888,842.39,841.47,0.80029083]
[1757012621136,0.20658888,842.39,841.46,0.80029083]
[1757012621436,0.20658888,842.39,841.56,0.80029083]
[1757012621736,0.20658888,842.39,841.55,0.80029083]
[1757012622137,0.20658888,842.39,841.54,0.80029083]
[1757012622438,0.20658888,842.39,841.56,0.80029083]
[1757012623238,0.20658888,842.39,841.55,0.80029083]
[1757012623439,0.20658888,842.39,841.56,0.80029083]
[1757012625138,0.20658888,842.39,841.55,0.80029083]
[1757012625434,0.20658888,842.39,841.56,0.80029083]
[1757012626136,0.20658888,842.39,841.55,0.80029083]
[1757012627142,0.71597603,843.01,841.55,0.80029083]
[1757012627342,0.71597603,843.01,841.63,0.80029083]
[1757012627540,2.6496844,844.68,841.64,0.80029083]
[1757012627541,0.20654351,842.53,841.64,0.80029083]
[1757012627841,0.71597603,843.06,841.64,0.80029083]
[1757012628040,0.20653432,842.53,841.64,0.80029083]
[1757012628241,0.71597603,843.06,841.63,0.80029083]
[1757012628439,0.20653493,842.53,841.64,0.80029083]
[1757012628841,0.71597603,843.07,841.64,0.80029083]
[1757012629041,0.20653432,842.53,841.67,0.80029083]
[1757012629241,0.20653432,842.53,841.75,0.80029083]
[1757012629540,0.71597603,843.01,841.78,0.80029083]
[1757012629743,0.20650245,842.76,841.78,0.80029083]
[1757012630141,0.20650245,842.76,841.75,0.80029083]
[1757012630444,0.20650245,842.76,841.76,0.80029083]
[1757012630847,0.20650245,842.76,841.8,0.80029083]
[1757012631246,0.20650245,842.76,841.78,0.80029083]
[1757012632242,0.20650245,842.76,841.77,0.80029083]
[1757012633244,0.20650245,842.76,841.75,0.80029083]
[1757012633443,0.20650245,842.76,841.76,0.80029083]
[1757012634144,0.20650245,842.76,841.75,0.80029083]
[1757012635442,0.20650245,842.76,841.76,0.80029083]
[1757012636341,0.20650245,842.76,841.56,1.0629753]
[1757012636342,0.20650245,842.76,841.75,0.80029083]
[1757012636742,0.20650245,842.76,841.76,0.80029083]
[1757012637043,0.20650245,842.76,841.77,0.80029083]
[1757012637346,0.20650245,842.76,841.78,0.80029083]
[1757012638248,0.20650245,842.76,841.76,0.80029083]
[1757012638443,0.20650245,842.76,841.65,0.80029083]
[1757012638748,0.20650245,842.76,841.57,0.80029083]
[1757012639047,0.20650245,842.76,841.58,0.80029083]
[1757012639245,0.20650245,842.76,841.57,0.80029083]
[1757012639442,0.20650245,842.76,841.58,0.80029083]
[1757012641249,0.20650245,842.76,841.59,0.80029083]
[1757012641447,0.20650245,842.76,841.58,0.80029083]
[1757012642252,0.20650245,842.76,841.59,0.80029083]
[1757012643152,0.20650245,842.76,841.6,0.80029083]
[1757012648256,0.20650245,842.76,840.45,0.20680249]
[1757012648257,0.20650245,842.76,841.69,0.80029083]
[1757012648461,0.20650245,842.76,841.76,0.80029083]
[1757012649156,0.20650245,842.76,841.78,0.80029083]
[1757012649556,0.20650245,842.76,840.45,0.20680249]
[1757012649557,0.20650245,842.76,841.7,0.80029083]
[1757012651255,0.20650245,842.76,841.71,0.80029083]
[1757012654557,0.71563325,843.34,841.71,0.80029083]
[1757012654858,0.20647182,842.87,841.76,0.80029083]
[1757012656257,0.20647182,842.87,841.46,1.0629753]
[1757012656258,0.20647182,842.87,841.77,0.80029083]
[1757012657461,0.20647182,842.87,841.79,0.80029083]
[1757012658260,0.20647182,842.87,841.8,0.80029083]
[1757012658668,0.20647182,842.87,841.9,0.80029083]
[1757012658866,0.20647182,842.87,841.96,0.80029083]
[1757012659268,0.20647182,842.87,841.97,0.80029083]
[1757012661167,0.20647182,842.87,841.98,0.80029083]
[1757012662167,0.20647182,842.87,840.81,2.6574383]
[1757012662168,0.20647182,842.87,841.99,0.80029083]
[1757012662670,0.20647182,842.87,842.02,0.80029083]
[1757012664372,0.20647182,842.87,842.03,0.80029083]
[1757012666266,0.20647182,842.87,842.04,0.80029083]
[1757012667066,0.20647182,842.87,842.05,0.80029083]
[1757012667269,0.20647182,842.87,842.06,0.80029083]
[1757012668370,0.20647182,842.87,842.07,0.80029083]
[1757012668571,0.20647182,842.87,842.09,0.80029083]
[1757012668874,0.20647182,842.87,842.08,0.80029083]
[1757012669173,0.20647182,842.87,841.92,1.0629753]
[1757012669174,0.20647182,842.87,842.09,0.80029083]
[1757012670271,0.20647182,842.87,842.1,0.80029083]
[1757012671272,0.20647182,842.87,842.11,0.80029083]
[1757012672171,0.20647182,842.87,841.09,2.6574383]
[1757012672172,0.20647182,842.87,842.12,0.80029083]
[1757012673276,0.20647182,842.87,842.14,0.80029083]
[1757012674176,0.20647182,842.87,842.15,0.80029083]
[1757012674878,0.20647182,842.87,842.14,0.80029083]
[1757012675377,0.20647182,842.87,842.16,0.80029083]
[1757012676373,0.20647182,842.87,842.18,0.80029083]
[1757012677373,0.20647182,842.87,842.19,0.80029083]
[1757012678278,0.20647182,842.87,842.2,0.80029083]
[1757012679173,0.20647182,842.87,842.22,0.80029083]
[1757012680180,0.20647182,842.87,840.8,3.7204137]
[1757012680181,0.20647182,842.87,842.23,0.80029083]
[1757012680480,0.20647182,842.87,842.16,0.80029083]
[1757012681276,0.20647182,842.87,842.17,0.80029083]
[1757012681982,0.20647182,842.87,842.13,0.80029083]
[1757012682176,0.20647182,842.87,842.14,0.80029083]
[1757012683381,0.20647182,842.87,842.15,0.80029083]
[1757012685183,0.20647182,842.87,842.16,0.80029083]
[1757012685878,0.20647182,842.87,842.14,0.80029083]
[1757012686078,0.20647182,842.87,842.15,0.80029083]
[1757012686278,0.20647182,842.87,840.92,2.6574383]
[1757012686279,0.20647182,842.87,842.16,0.80029083]
[1757012687182,0.20647182,842.87,842.17,0.80029083]
[1757012687683,0.20647182,842.87,842.16,0.80029083]
[1757012688282,0.20647182,842.87,842.17,0.80029083]
[1757012688986,0.20647182,842.87,842.16,0.80029083]
[1757012689281,0.20647182,842.87,842.17,0.80029083]
[1757012689685,0.20647182,842.87,842.13,0.80029083]
[1757012690180,0.20647182,842.87,842.14,0.80029083]
[1757012690384,0.20647182,842.87,842.15,0.80029083]
[1757012693185,0.92684928,842.87,842.16,0.80029083]
[1757012693388,0.72167525,842.86,842.11,0.80029083]
[1757012693582,0.20647182,842.87,842.05,0.80029083]
[1757012695189,0.20647182,842.87,842.06,0.80029083]
[1757012697489,0.20647182,842.87,842.09,0.80029083]
[1757012699091,0.79426338,842.86,842.14,0.80029083]
[1757012699287,0.72167525,842.85,842.13,0.80029083]
[1757012700589,0.72167525,842.85,842.14,0.80029083]
[1757012701792,0.79426338,842.82,842.16,0.80029083]
[1757012702090,0.72167525,842.81,842.16,0.80029083]
[1757012704891,0.72167525,842.81,842.13,0.80029083]
[1757012705091,0.72167525,842.85,842.13,0.80029083]
[1757012705698,1.0007352,842.87,842.13,0.80029083]
[1757012705699,0.72167525,842.86,842.13,0.80029083]
[1757012706100,1.51593863,842.86,842.13,0.80029083]
[1757012706395,1.51593863,842.86,841.96,1.0629753]
[1757012706396,0.72167525,842.85,842.12,0.80029083]
[1757012706597,0.92814707,842.87,842.12,0.80029083]
[1757012709004,1.72241045,842.87,842.12,0.80029083]
[1757012709204,0.72167525,842.86,842.12,0.80029083]
[1757012710404,0.92814707,842.87,842.12,0.80029083]
[1757012711504,1.72241045,842.87,842.11,0.80029083]
[1757012711704,1.72241045,842.87,842.1,0.80029083]
[1757012711705,1.51593863,842.86,842.1,0.80029083]
[1757012711905,1.51593863,842.85,842.08,0.80029083]
[1757012712204,0.20647182,842.87,841.0,2.6574383]
[1757012712205,0.72167525,842.84,842.0,0.80029083]
[1757012712506,0.72167525,842.86,842.0,0.80029083]
[1757012712801,0.72167525,842.86,842.0,0.79882481]
[1757012713504,0.72167525,842.86,841.99,0.79882481]
[1757012713704,1.00022389,842.87,841.97,0.79882481]
[1757012713899,1.00022389,842.87,841.54,1.594463]
[1757012713900,0.79375207,842.83,841.95,0.79882481]
[1757012714200,0.72167525,842.82,841.94,0.79882481]
[1757012714401,0.72167525,842.83,841.95,0.79882481]
[1757012714701,0.72167525,842.83,841.94,0.79882481]
[1757012714901,0.72167525,842.83,841.95,0.79882481]
[1757012715101,0.72167525,842.83,841.94,0.79882481]
[1757012715708,0.79375207,842.81,841.96,0.79882481]
[1757012715910,0.79375207,842.75,841.89,0.79882481]
[1757012716110,0.72167525,842.74,841.89,0.79882481]
[1757012716309,0.72167525,842.74,841.88,0.79882481]
[1757012717204,1.51542732,842.75,841.89,0.79882481]
[1757012717405,0.72167525,842.74,841.89,0.79882481]
[1757012717709,1.51542732,842.74,841.89,0.79882481]
[1757012717909,0.72167525,842.73,841.89,0.79882481]
[1757012718608,0.72167525,842.74,841.89,0.79882481]
[1757012719307,0.72167525,842.74,841.88,0.79882481]
[1757012720211,0.72167525,842.74,841.87,0.79882481]
[1757012720411,0.72167525,842.75,841.87,0.79882481]
[1757012721710,0.72167525,842.75,841.86,0.79882481]
[1757012721909,0.72167525,842.76,841.86,0.79882481]
[1757012724213,0.72167525,842.76,841.85,0.79882481]
[1757012725510,0.72167525,842.77,841.85,0.79882481]
[1757012725716,0.79375207,842.74,841.88,0.79882481]
[1757012725916,1.51542732,842.73,841.88,0.79882481]
[1757012726112,0.72167525,842.72,841.88,0.79882481]
[1757012726311,0.72167525,842.72,841.87,0.79882481]
[1757012726617,0.72167525,842.73,841.87,0.79882481]
[1757012726812,1.51542732,842.73,841.88,0.79882481]
[1757012727015,0.72167525,842.72,841.88,0.79882481]
[1757012728217,0.72167525,842.72,841.87,0.79882481]
[1757012729723,0.72167525,842.72,841.82,0.79882481]
[1757012730024,0.72167525,842.8,841.82,0.79882481]
[1757012733730,0.72167525,842.8,841.83,0.79882481]
[1757012733926,0.20647182,842.87,841.83,0.79882481]
[1757012734629,0.20647182,842.87,841.84,0.79882481]
[1757012735222,0.20647182,842.87,841.85,0.79882481]
[1757012737328,0.20647182,842.87,841.86,0.79882481]
[1757012737529,0.20647182,842.87,841.92,0.79882481]
[1757012738231,0.20647182,842.87,841.93,0.79882481]
[1757012738827,0.20647182,842.87,841.96,0.79882481]
[1757012739531,0.20647182,842.87,841.97,0.79882481]
[1757012739830,0.20647182,842.87,840.35,3.7204137]
[1757012739831,0.20647182,842.87,841.99,0.79882481]
[1757012740329,0.20647182,842.87,842.0,0.79882481]
[1757012741333,0.92559789,842.87,842.0,0.79882481]
[1757012742334,0.92559789,842.87,842.01,0.79882481]
[1757012743235,1.71934996,842.87,842.01,0.79882481]
[1757012743435,0.71912607,842.86,842.01,0.79882481]
[1757012743734,0.71912607,842.86,840.95,0.206519]
[1757012743735,0.71912607,842.86,842.02,0.79882481]
[1757012744435,0.79375207,842.85,842.01,0.79882481]
[1757012744631,0.79375207,842.83,842.01,0.79882481]
[1757012744834,0.79375207,842.8,841.9,0.79882481]
[1757012745035,0.71912607,842.79,841.9,0.79882481]
[1757012745235,0.71912607,842.79,841.91,0.79882481]
[1757012745436,0.71912607,842.79,841.92,0.79882481]
[1757012747236,1.51287814,842.79,841.93,0.79882481]
[1757012747437,0.71912607,842.78,841.93,0.79882481]
[1757012747634,0.71912607,842.78,841.92,0.79882481]
[1757012747835,0.71912607,842.79,841.92,0.79882481]
[1757012749341,0.71912607,842.79,841.93,0.79882481]
[1757012749539,0.79375207,842.78,841.93,0.79882481]
[1757012749741,0.71912607,842.77,841.93,0.79882481]
[1757012750037,0.79375207,842.76,841.9,0.79882481]
[1757012750240,0.71912607,842.75,841.9,0.79882481]
[1757012751140,1.51287814,842.75,841.9,0.79882481]
[1757012751340,0.71912607,842.74,841.9,0.79882481]
[1757012751540,0.71912607,842.74,841.82,0.79882481]
[1757012751840,0.92559789,842.87,841.82,0.79882481]
[1757012752240,1.71934996,842.87,841.83,0.79882481]
[1757012752441,0.71912607,842.86,841.83,0.79882481]
[1757012753043,1.51287814,842.86,841.84,0.79882481]
[1757012753241,1.51287814,842.85,841.84,0.79882481]
[1757012753437,0.79375207,842.85,841.84,0.79882481]
[1757012753737,0.72055929,842.84,841.84,0.79882481]
[1757012754337,1.51431136,842.85,841.84,0.79882481]
[1757012754536,0.72055929,842.84,841.84,0.79882481]
[1757012755338,0.72055929,842.85,841.84,0.79882481]
[1757012757443,1.51431136,842.85,841.84,0.79882481]
[1757012757644,0.72055929,842.84,841.84,0.79882481]
[1757012758539,0.72055929,842.84,841.86,0.79882481]
[1757012758740,0.72055929,842.86,841.86,0.79882481]
[1757012759645,0.72055929,842.86,841.87,0.79882481]
[1757012760445,1.51431136,842.86,841.87,0.79882481]
[1757012760642,0.72055929,842.85,841.87,0.79882481]
[1757012761343,0.72055929,842.85,841.6,1.0629753]
[1757012761344,0.79375207,842.75,841.94,0.79882481]
[1757012761548,0.72055929,842.74,841.94,0.79882481]
[1757012762247,0.72055929,842.74,841.95,0.79882481]
[1757012764144,1.51431136,842.74,841.95,0.79882481]
[1757012764343,0.72055929,842.73,841.95,0.79882481]
[1757012765052,0.79375207,842.72,841.97,0.79882481]
[1757012765251,1.51431136,842.71,841.97,0.79882481]
[1757012765450,0.72055929,842.7,841.97,0.79882481]
[1757012765647,0.72055929,842.71,841.97,0.79882481]
[1757012766252,1.51415555,842.71,841.98,0.79882481]
[1757012766451,0.72040348,842.7,841.98,0.79882481]
[1757012767251,1.51415555,842.7,841.97,0.79882481]
[1757012767452,0.72040348,842.69,841.98,0.79882481]
[1757012767652,0.79375207,842.68,841.96,0.79882481]
[1757012767947,0.72040348,842.67,841.96,0.79882481]
[1757012768251,0.72040348,842.67,841.97,0.79882481]
[1757012769850,0.79375207,842.61,842.02,0.79882481]
[1757012770047,0.72040348,842.6,842.01,0.79882481]
[1757012770248,0.72040348,842.6,842.02,0.79882481]
[1757012771248,1.51415555,842.6,842.02,0.79882481]
[1757012771553,0.72040348,842.59,842.02,0.79882481]
[1757012771752,0.72040348,842.6,842.02,0.79882481]
[1757012772252,1.51415555,842.6,842.03,0.79882481]
[1757012772448,0.72040348,842.59,842.02,0.79882481]
[1757012773148,0.79375207,842.61,842.02,0.79882481]
[1757012773349,0.79375207,842.6,842.02,0.79882481]
[1757012773952,0.79375207,842.6,842.03,0.79882481]
[1757012774154,0.72076996,842.59,842.03,0.79882481]
[1757012774954,0.79375207,842.6,842.03,0.79882481]
[1757012775253,0.72076346,842.59,842.03,0.79882481]
[1757012775754,0.79375207,842.6,842.03,0.79882481]
[1757012776054,0.79375207,842.6,842.02,0.79882481]
[1757012776854,0.79375207,842.61,842.02,0.79882481]
[1757012777951,0.72077902,842.6,842.02,0.79882481]
[1757012779555,0.72077902,842.6,842.01,0.79882481]
[1757012779751,0.72077902,842.61,842.01,0.79882481]
[1757012781456,1.51453109,842.62,842.01,0.79882481]
[1757012781653,0.72077902,842.61,842.01,0.79882481]
[1757012782057,0.72077902,842.61,842.0,0.79882481]
[1757012782356,0.72077902,842.62,842.0,0.79882481]
[1757012783156,0.72077902,842.63,842.0,0.79882481]
[1757012784653,1.51453109,842.63,842.0,0.79882481]
[1757012784955,0.72077902,842.62,842.0,0.79882481]
[1757012785853,0.72077902,842.62,841.99,0.79882481]
[1757012786053,0.72077902,842.64,841.99,0.79882481]
[1757012792364,0.72077902,842.64,842.01,0.79882481]
[1757012792564,0.72077902,842.65,842.01,0.79882481]
[1757012793066,0.72077902,842.65,841.98,0.79882481]
[1757012793264,0.72077902,842.69,841.98,0.79882481]
[1757012793765,1.51453109,842.69,841.99,0.79882481]
[1757012793961,0.72077902,842.68,841.99,0.79882481]
[1757012795262,1.51453109,842.68,841.99,0.79882481]
[1757012795463,0.72077902,842.67,841.99,0.79882481]
[1757012796063,0.72077902,842.67,840.95,0.206519]
[1757012796064,0.72077902,842.67,842.0,0.79882481]
[1757012796263,0.72077902,842.68,842.0,0.79882481]
[1757012798368,0.72077902,842.68,841.62,1.594463]
[1757012798369,1.51453109,842.68,842.01,0.79882481]
[1757012798565,0.72077902,842.67,842.01,0.79882481]
[1757012800269,1.51453109,842.67,842.02,0.79882481]
[1757012800472,0.72077902,842.66,842.02,0.79882481]
[1757012801969,0.72135206,842.66,842.02,0.79882481]
[1757012802174,0.79375207,842.61,842.06,0.79882481]
[1757012802375,1.51510413,842.6,842.07,0.79882481]
[1757012802675,0.72135206,842.59,842.07,0.79882481]
[1757012804177,1.51510413,842.59,842.08,0.79882481]
[1757012804374,0.72135206,842.58,842.08,0.79882481]
[1757012804975,1.51510413,842.58,842.09,0.79882481]
[1757012805177,0.72135206,842.57,842.09,0.79882481]
[1757012807180,1.51510413,842.57,842.09,0.79882481]
[1757012807479,0.72135206,842.56,842.09,0.79882481]
[1757012808981,0.72189551,842.56,842.09,0.79882481]
[1757012809182,0.72189551,842.57,842.09,0.79882481]
[1757012811181,1.51564758,842.57,842.09,0.79882481]
[1757012811377,0.72189551,842.56,842.09,0.79882481]
[1757012814782,0.72189551,842.57,842.09,0.79882481]
[1757012818087,1.51564758,842.57,842.09,0.79882481]
[1757012818288,0.72189551,842.56,842.09,0.79882481]
[1757012819588,0.72189551,842.57,842.09,0.79882481]
[1757012822692,0.72187979,842.57,842.09,0.79882481]
[1757012823793,0.79375207,842.56,842.07,0.79882481]
[1757012823987,0.72187979,842.55,842.07,0.79882481]
[1757012824390,0.72187979,842.55,842.06,0.79882481]
[1757012824593,0.72187979,842.55,841.83,0.79882481]
[1757012824789,0.72187979,842.6,841.83,0.79882481]
[1757012825094,0.79375207,842.53,841.81,0.79882481]
[1757012825394,0.72168393,842.52,841.78,0.79882481]
[1757012825589,0.79375207,842.55,841.78,0.79882481]
[1757012825590,0.72168393,842.54,841.78,0.79882481]
[1757012826293,0.72168393,842.54,841.77,0.79882481]
[1757012826490,0.72168393,842.55,841.77,0.79882481]
[1757012826795,0.79375207,842.54,841.79,0.79882481]
[1757012826996,0.72168393,842.53,841.79,0.79882481]
[1757012827196,0.72168393,842.53,841.76,0.79882481]
[1757012827596,0.72168393,842.53,841.76,0.80025945]
[1757012827997,0.79495369,842.51,841.78,0.80025945]
[1757012828197,0.72168393,842.5,841.78,0.80025945]
[1757012828494,0.79495369,842.47,841.81,0.80025945]
[1757012828798,0.79495369,842.45,841.72,0.80025945]
[1757012829097,0.72054996,842.44,841.72,0.80025945]
[1757012829395,0.72054996,842.44,841.71,0.80025945]
[1757012829594,0.72054996,842.45,841.71,0.80025945]
[1757012829993,0.72054996,842.45,841.7,0.80025945]
[1757012830192,0.72054996,842.46,841.69,0.80025945]
[1757012830397,0.72054996,842.47,841.69,0.80025945]
[1757012831396,0.72054996,842.47,841.68,0.80025945]
[1757012831601,0.72054996,842.48,841.68,0.80025945]
[1757012832302,0.72054996,842.48,841.67,0.80025945]
[1757012832501,0.72054996,842.49,841.67,0.80025945]
[1757012833401,0.72054996,842.5,841.67,0.80025945]
[1757012833805,1.51550365,842.5,841.67,0.80025945]
[1757012834002,0.72054996,842.49,841.67,0.80025945]
[1757012834504,0.72054996,842.5,841.66,0.80025945]
[1757012834800,0.79495369,842.77,841.76,0.80025945]
[1757012835005,0.71975654,842.76,841.81,0.80025945]
[1757012835205,0.71975654,842.86,841.84,0.80025945]
[1757012835504,0.20647182,842.87,841.84,0.80025945]
[1757012836302,0.92619083,842.87,841.84,0.80025945]
[1757012836502,0.71971901,842.86,841.83,0.80025945]
[1757012836909,0.71971901,842.86,841.84,0.80025945]
[1757012837108,0.20647182,842.87,841.84,0.80025945]
[1757012840608,0.20647182,842.87,841.55,1.0629753]
[1757012841113,1.00142551,842.87,841.61,1.0629753]
[1757012841308,0.79495369,842.8,841.79,1.0629753]
[1757012841613,0.71970959,842.79,841.79,1.0629753]
[1757012841812,0.79495369,842.76,841.84,1.0629753]
[1757012842110,0.71970959,842.75,841.84,1.0629753]
[1757012843008,0.71970959,842.84,841.84,1.0629753]
[1757012843813,0.71970959,842.85,841.84,1.0629753]
[1757012844010,1.51466328,842.85,841.84,1.0629753]
[1757012844213,0.71970959,842.84,841.84,1.0629753]
[1757012844709,0.71970959,842.85,841.84,1.0629753]
[1757012845813,0.71970959,842.85,840.95,0.206519]
[1757012845814,0.71970959,842.85,841.83,1.0629753]
[1757012846012,0.71970959,842.86,841.83,1.0629753]
[1757012846212,0.71970959,842.86,841.82,1.0629753]
[1757012846816,0.71970959,842.86,841.83,1.0629753]
[1757012847013,0.92618141,842.87,841.83,1.0629753]
[1757012847912,1.7211351,842.87,841.89,1.0629753]
[1757012848117,0.71970959,842.86,841.88,1.0629753]
[1757012848314,0.20647182,842.87,841.85,1.0629753]
[1757012848514,0.20647182,842.87,841.88,1.0629753]
[1757012848717,0.20647182,842.87,841.89,1.0629753]
[1757012849320,0.20647182,842.87,841.88,1.0629753]
[1757012850318,0.20647182,842.87,841.91,1.0629753]
[1757012850822,0.20647182,842.87,841.9,1.0629753]
[1757012851620,0.20647182,842.87,841.91,1.0629753]
[1757012852420,0.20647182,842.87,841.9,1.0629753]
[1757012853118,0.20647182,842.87,842.02,1.0629753]
[1757012853320,0.20647182,842.87,842.0,1.0629753]
[1757012854126,0.71871174,843.17,841.99,1.0629753]
[1757012854320,0.20645529,842.95,842.04,1.0629753]
[1757012854823,0.20645529,842.95,842.03,1.0629753]
[1757012855021,0.20645529,842.95,842.04,1.0629753]
[1757012855220,0.20645529,842.95,842.02,1.0629753]
[1757012855623,0.20645529,842.95,841.02,2.6574383]
[1757012855624,0.20645529,842.95,842.03,1.0629753]
[1757012855921,0.79318076,843.27,842.13,1.0629753]
[1757012856124,0.20644426,843.04,842.13,1.0629753]
[1757012856425,0.20644426,843.04,842.11,1.0629753]
[1757012857125,0.20644426,843.04,842.13,1.0629753]
[1757012857322,0.20644426,843.04,842.1,1.0629753]
[1757012858222,0.20644426,843.04,842.13,1.0629753]
[1757012858427,0.20644426,843.04,842.12,1.0629753]
[1757012859227,0.20644426,843.04,842.11,1.0629753]
[1757012859424,0.20644426,843.04,842.1,1.0629753]
[1757012860129,0.20644426,843.04,842.08,1.0629753]
[1757012860326,0.20644426,843.04,841.28,2.6574383]
[1757012860327,0.20644426,843.04,842.06,1.0629753]
[1757012860526,0.20644426,843.04,842.04,1.0629753]
[1757012860725,0.20644426,843.04,842.1,1.0629753]
[1757012861326,0.20644426,843.04,842.08,1.0629753]
[1757012862328,0.20644426,843.04,842.06,1.0629753]
[1757012863327,0.20644426,843.04,842.05,1.0629753]
[1757012864330,0.20644426,843.04,842.03,1.0629753]
[1757012865032,0.71631922,843.4,842.03,1.0629753]
[1757012865232,0.71631922,843.4,842.06,1.0629753]
[1757012865434,0.20641426,843.15,842.11,1.0629753]
[1757012866335,0.20641426,843.15,842.09,1.0629753]
[1757012867032,0.20641426,843.15,842.1,1.0629753]
[1757012867231,0.20641426,843.15,842.08,1.0629753]
[1757012868333,0.20641426,843.15,842.06,1.0629753]
[1757012868836,0.20641426,843.15,842.07,1.0629753]
[1757012869237,0.20641426,843.15,842.06,1.0629753]
[1757012870335,0.20641426,843.15,842.04,1.0629753]
[1757012870938,0.20641426,843.15,842.07,1.0629753]
[1757012871337,0.20641426,843.15,842.06,1.0629753]
[1757012871838,0.20641426,843.15,842.05,1.0629753]
[1757012872041,0.20641426,843.15,841.89,1.594463]
[1757012872042,0.20641426,843.15,841.98,1.0629753]
[1757012872342,0.20641426,843.15,841.97,1.0629753]
[1757012873243,0.20641426,843.15,841.96,1.0629753]
[1757012874444,0.20641426,843.15,841.95,1.0629753]
[1757012875343,0.20641426,843.15,841.94,1.0629753]
[1757012876244,0.20641426,843.15,841.93,1.0629753]
[1757012876942,0.20641426,843.15,841.86,1.0629753]
[1757012878246,0.20641426,843.15,841.88,1.0629753]
[1757012880543,0.20641426,843.15,842.0,1.0629753]
[1757012880741,0.20641426,843.15,842.03,1.0629753]
[1757012881443,0.20641426,843.15,842.02,1.0629753]
[1757012882245,0.20641426,843.15,842.01,1.0629753]
[1757012883151,0.20641426,843.15,841.86,1.594463]
[1757012883152,0.20641426,843.15,841.99,1.0629753]
[1757012884245,0.20641426,843.15,841.98,1.0629753]
[1757012884851,0.20641426,843.15,841.97,1.0629753]
[1757012885249,0.20641426,843.15,841.98,1.0629753]
[1757012886353,0.20641426,843.15,841.99,1.0629753]
[1757012886551,0.20641426,843.15,841.94,1.0629753]
[1757012886749,0.20641426,843.15,841.78,1.0629753]
[1757012887153,0.20641426,843.15,841.77,1.0629753]
[1757012887354,0.20641426,843.15,841.78,1.0629753]
[1757012888153,0.20641426,843.15,841.79,1.0629753]
[1757012889355,0.20641426,843.15,841.8,1.0629753]
[1757012889557,0.20641426,843.15,841.81,1.0629753]
[1757012890358,0.20641426,843.15,841.83,1.0629753]
[1757012890755,0.20641426,843.15,841.84,1.0629753]
[1757012891358,0.20641426,843.15,841.86,1.0629753]
[1757012891556,0.20641426,843.15,841.88,1.0629753]
[1757012892261,0.20641426,843.15,841.97,1.0629753]
[1757012893362,0.20641426,843.15,842.0,1.0629753]
[1757012894362,0.20641426,843.15,842.03,1.0629753]
[1757012895059,0.20641426,843.15,841.98,1.0629753]
[1757012895262,0.20641426,843.15,841.99,1.0629753]
[1757012896364,0.20641426,843.15,842.0,1.0629753]
[1757012897265,0.20641426,843.15,842.01,1.0629753]
[1757012897562,0.20641426,843.15,842.02,1.0629753]
[1757012898465,0.20641426,843.15,842.03,1.0629753]
[1757012899166,0.20641426,843.15,842.05,1.0629753]
[1757012900160,0.20641426,843.15,842.04,1.0629753]
[1757012900365,0.20641426,843.15,842.05,1.0629753]
[1757012900867,0.20641426,843.15,842.04,1.0629753]
[1757012901167,0.20641426,843.15,842.03,1.0629753]
[1757012901361,0.20641426,843.15,842.05,1.0629753]
[1757012901766,0.20641426,843.15,842.04,1.0629753]
[1757012902166,0.20641426,843.15,842.03,1.0629753]
[1757012902368,0.20641426,843.15,842.06,1.0629753]
[1757012902667,0.20641426,843.15,842.05,1.0629753]
[1757012903163,0.20641426,843.15,842.06,1.0629753]
[1757012903568,0.20641426,843.15,840.95,0.206519]
[1757012903569,0.20641426,843.15,842.05,1.0629753]
[1757012903863,0.20641426,843.15,842.04,1.0629753]
[1757012904063,0.20641426,843.15,842.06,1.0629753]
[1757012904267,0.20641426,843.15,842.03,1.0629753]
[1757012904464,0.20641426,843.15,842.05,1.0629753]
[1757012904662,0.20641426,843.15,842.01,1.0629753]
[1757012905067,0.20641426,843.15,842.02,1.0629753]
[1757012905265,0.20641426,843.15,842.03,1.0629753]
[1757012905571,0.20641426,843.15,842.04,1.0629753]
[1757012906269,0.20641426,843.15,842.06,1.0629753]
[1757012906770,0.20641426,843.15,842.07,1.0629753]
[1757012907069,0.92528327,843.15,842.06,1.0629753]
[1757012907269,0.71886901,843.14,842.06,1.0629753]
[1757012907465,0.20641426,843.15,842.06,1.0629753]
[1757012907865,0.20641426,843.15,842.07,1.0629753]
[1757012908766,0.20641426,843.15,842.06,1.0629753]
[1757012909470,0.20641426,843.15,842.07,1.0629753]
[1757012910071,0.20641426,843.15,840.95,0.206519]
[1757012910072,0.20641426,843.15,842.06,1.0629753]
[1757012910272,0.20641426,843.15,842.08,1.0629753]